Workbook

Sheet Transitorio
C2: DIVIPOLA | D2: NOMBRE
B3: DEPARTAMENTO | C3: =INDEX(Tabla_Departamentos[Codigo],MATCH(1,((Tabla_Departamentos[Departamento]=DEP)*1),0)) -> 94 | D3: GUAINÍA
B4: MUNICIPIO | C4: =INDEX(Tabla_Municipios[Codigo_M],MATCH(1,(Tabla_Municipios[Codigo_D]=COD_DEP)*(Tabla_Municipios[Nombre_Municipio]=NOM_MUN),0)) -> 94001 | D4: INÍRIDA
B6: RADIACIÓN | C6: =INDEX(Tabla_Municipios[Radiación (kWh/m2)],MATCH(1,((Tabla_Municipios[Codigo_M]=COD_DIV)*1),0)) -> 4.25 | E6: IEEm-1 | F6: 175.85
B7: FDSk | C7: =INDEX(Tabla_Municipios[FDSk],MATCH(1,((Tabla_Municipios[Codigo_M]=COD_DIV)*1),0)) -> 1.41176 | E7: IEE0 | F7: 81.91
B8: FCTk | C8: =INDEX(Tabla_Municipios[FCTk],MATCH(1,((Tabla_Municipios[Codigo_M]=COD_DIV)*1),0)) -> 1.14544 | E8: TD | F8: 0.1522
B10: GSFV | C10: =CI_SFV + CAOM_SFV -> 1313.509981 | E10: GA | F10: =CI_A + CAOM_A -> 2961.736647
B11: CISFV | C11: =CI_SFV -> 1108.835797 | E11: CIA | F11: =CI_A -> 2623.36555
B12: CAOMSFV | C12: =CAOM_SFV -> 204.6741847 | E12: CAOMA | F12: =CAOM_A -> 338.3710965
B14: CISFV | C14: =(VI_SFV * FDS * FCT * TD * IEE_m1) / ((1-POWER(1+TD,-VU_SFV)) * IEE_0) -> 1108.835797 | E14: CIA | F14: =((VI_A * FCT * TD)/(1-POWER(1+TD,-VU_A))) * (IEE_m1 / IEE_0) + (CI_SFV / FEF) -> 2623.36555
B15: VISFV | C15: 2037.75 | E15: VIA | F15: 2875.39
B16: VUSFV | C16: 25 | E16: VUA | F16: 10
E17: FEF | F17: 0.922
B19: CAOMSFV | C19: =AOM_SFV * FDS * IEE_m1 / IEE_0 -> 204.6741847 | E19: CAOMA | F19: =AOM_A * (IEE_m1 / IEE_0) + (CAOM_SFV / FEF) -> 338.3710965
B20: AOMSFV,0 | C20: 67.53 | E20: AOMA | F20: 54.21
C24: $/kWh | D24: Ej,k,m-1 | F24: aj,k,m
B25: GDiesel | C25: 2300.62 | D25: 40 | F25: =E_D / (E_A + E_D + E_H + E_SFV) -> 0.4
B26: GMCH | C26: 700 | D26: 30 | F26: =E_H / (E_A + E_D + E_H + E_SFV) -> 0.3
B27: GSFV | C27: =G_SFV -> 1313.509981 | D27: 20 | F27: =IF((E_SFV * G_SFV + E_A * G_A ) / (E_SFV + E_A) <= G_D, E_SFV / (E_A + E_D + E_H + E_SFV), MIN(1, (G_A - G_D) / (G_A - G_SFV)) * (1 - Alfa_D - Alfa_H)) -> 0.2
B28: GA | C28: =G_A -> 2961.736647 | D28: 10 | F28: =IF((E_SFV * G_SFV + E_A * G_A ) / (E_SFV + E_A) <= G_D, E_A / (E_A + E_D + E_H + E_SFV), MAX(0, 1 - ((G_A - G_D) / (G_A - G_SFV))) * (1 - Alfa_D - Alfa_H)) -> 0.1
B30: Gk | C30: =SUMPRODUCT(C25:C28,F25:F28) -> 1689.123661

Sheet Divipola
B2: Codigo | C2: Departamento | E2: Codigo_M | F2: Codigo_D | G2: Nombre_Municipio | H2: Radiación (kWh/m2) | I2: FDSk | J2: FCTk
B3: 91 | C3: AMAZONAS | E3: 05001 | F3: 05 | G3: MEDELLÍN | H3: 3.75 | I3: =ROUND(6/H3,5) -> 1.6 | J3: 1.00864
B4: 05 | C4: ANTIOQUIA | E4: 05002 | F4: 05 | G4: ABEJORRAL | H4: 4.25 | I4: =ROUND(6/H4,5) -> 1.41176 | J4: 1.0192
B5: 81 | C5: ARAUCA | E5: 05004 | F5: 05 | G5: ABRIAQUÍ | H5: 3.75 | I5: 1.6 | J5: 1.0259
B6: 08 | C6: ATLÁNTICO | E6: 05021 | F6: 05 | G6: ALEJANDRÍA | H6: 3.75 | I6: 1.6 | J6: 1.01812
B7: 11 | C7: BOGOTÁ | E7: 05030 | F7: 05 | G7: AMAGÁ | H7: 3.75 | I7: 1.6 | J7: 1.01457
B8: 13 | C8: BOLÍVAR | E8: 05031 | F8: 05 | G8: AMALFI | H8: 4.25 | I8: 1.41176 | J8: 1.0242
B9: 15 | C9: BOYACÁ | E9: 05034 | F9: 05 | G9: ANDES | H9: 3.75 | I9: 1.6 | J9: 1.02032
B10: 17 | C10: CALDAS | E10: 05036 | F10: 05 | G10: ANGELÓPOLIS | H10: 3.75 | I10: 1.6 | J10: 1.01611
B11: 18 | C11: CAQUETÁ | E11: 05038 | F11: 05 | G11: ANGOSTURA | H11: 3.75 | I11: 1.6 | J11: 1.0211
B12: 85 | C12: CASANARE | E12: 05040 | F12: 05 | G12: ANORÍ | H12: 3.75 | I12: 1.6 | J12: 1.02929
B13: 19 | C13: CAUCA | E13: 05042 | F13: 05 | G13: SANTA FÉ DE ANTIOQUIA | H13: 4.25 | I13: 1.41176 | J13: 1.01988
B14: 20 | C14: CESAR | E14: 05044 | F14: 05 | G14: ANZÁ | H14: 4.25 | I14: 1.41176 | J14: 1.02538
B15: 27 | C15: CHOCÓ | E15: 05045 | F15: 05 | G15: APARTADÓ | H15: 3.75 | I15: 1.6 | J15: 1.02974
B16: 23 | C16: CÓRDOBA | E16: 05051 | F16: 05 | G16: ARBOLETES | H16: 4.25 | I16: 1.41176 | J16: 1.0259
B17: 25 | C17: CUNDINAMARCA | E17: 05055 | F17: 05 | G17: ARGELIA | H17: 3.75 | I17: 1.6 | J17: 1.01792
B18: 94 | C18: GUAINÍA | E18: 05059 | F18: 05 | G18: ARMENIA | H18: 3.75 | I18: 1.6 | J18: 1.01533
B19: 95 | C19: GUAVIARE | E19: 05079 | F19: 05 | G19: BARBOSA | H19: 4.25 | I19: 1.41176 | J19: 1.01177
B20: 41 | C20: HUILA | E20: 05086 | F20: 05 | G20: BELMIRA | H20: 4.25 | I20: 1.41176 | J20: 1.01795
B21: 44 | C21: LA GUAJIRA | E21: 05088 | F21: 05 | G21: BELLO | H21: 4.25 | I21: 1.41176 | J21: 1.01429
B22: 47 | C22: MAGDALENA | E22: 05091 | F22: 05 | G22: BETANIA | H22: 3.75 | I22: 1.6 | J22: 1.01864
B23: 50 | C23: META | E23: 05093 | F23: 05 | G23: BETULIA | H23: 4.25 | I23: 1.41176 | J23: 1.02579
B24: 52 | C24: NARIÑO | E24: 05101 | F24: 05 | G24: CIUDAD BOLÍVAR | H24: 4.25 | I24: 1.41176 | J24: 1.01891
B25: 54 | C25: NORTE DE SANTANDER | E25: 05107 | F25: 05 | G25: BRICEÑO | H25: 3.75 | I25: 1.6 | J25: 1.03106
B26: 86 | C26: PUTUMAYO | E26: 05113 | F26: 05 | G26: BURITICÁ | H26: 3.75 | I26: 1.6 | J26: 1.01937
B27: 63 | C27: QUINDÍO | E27: 05120 | F27: 05 | G27: CÁCERES | H27: 4.25 | I27: 1.41176 | J27: 1.01796
B28: 66 | C28: RISARALDA | E28: 05125 | F28: 05 | G28: CAICEDO | H28: 4.25 | I28: 1.41176 | J28: 1.02445
B29: 88 | C29: SAN ANDRÉS | E29: 05129 | F29: 05 | G29: CALDAS | H29: 3.75 | I29: 1.6 | J29: 1.02118
B30: 68 | C30: SANTANDER | E30: 05134 | F30: 05 | G30: CAMPAMENTO | H30: 3.25 | I30: 1.84615 | J30: 1.02552
B31: 70 | C31: SUCRE | E31: 05138 | F31: 05 | G31: CAÑASGORDAS | H31: 3.75 | I31: 1.6 | J31: 1.02481
B32: 73 | C32: TOLIMA | E32: 05142 | F32: 05 | G32: CARACOLÍ | H32: 4.25 | I32: 1.41176 | J32: 1.02481
B33: 76 | C33: VALLE DEL CAUCA | E33: 05145 | F33: 05 | G33: CARAMANTA | H33: 4.25 | I33: 1.41176 | J33: 1.01721
B34: 97 | C34: VAUPÉS | E34: 05147 | F34: 05 | G34: CAREPA | H34: 3.75 | I34: 1.6 | J34: 1.02589
B35: 99 | C35: VICHADA | E35: 05148 | F35: 05 | G35: EL CARMEN DE VIBORAL | H35: 4.25 | I35: 1.41176 | J35: 1.02707
E36: 05150 | F36: 05 | G36: CAROLINA | H36: 4.25 | I36: 1.41176 | J36: 1.01984
E37: 05154 | F37: 05 | G37: CAUCASIA | H37: 4.25 | I37: 1.41176 | J37: 1.02037
E38: 05172 | F38: 05 | G38: CHIGORODÓ | H38: 3.75 | I38: 1.6 | J38: 1.02375
E39: 05190 | F39: 05 | G39: CISNEROS | H39: 4.25 | I39: 1.41176 | J39: 1.01848
E40: 05197 | F40: 05 | G40: COCORNÁ | H40: 4.25 | I40: 1.41176 | J40: 1.01934
E41: 05206 | F41: 05 | G41: CONCEPCIÓN | H41: 3.25 | I41: 1.84615 | J41: 1.01159
E42: 05209 | F42: 05 | G42: CONCORDIA | H42: 4.25 | I42: 1.41176 | J42: 1.02255
E43: 05212 | F43: 05 | G43: COPACABANA | H43: 3.75 | I43: 1.6 | J43: 1.01754
E44: 05234 | F44: 05 | G44: DABEIBA | H44: 3.75 | I44: 1.6 | J44: 1.01847
E45: 05237 | F45: 05 | G45: DONMATÍAS | H45: 4.25 | I45: 1.41176 | J45: 1.02751
E46: 05240 | F46: 05 | G46: EBÉJICO | H46: 4.25 | I46: 1.41176 | J46: 1.01881
E47: 05250 | F47: 05 | G47: EL BAGRE | H47: 4.25 | I47: 1.41176 | J47: 1.02391
E48: 05264 | F48: 05 | G48: ENTRERRÍOS | H48: 4.25 | I48: 1.41176 | J48: 1.01681
E49: 05266 | F49: 05 | G49: ENVIGADO | H49: 3.75 | I49: 1.6 | J49: 1.01453
E50: 05282 | F50: 05 | G50: FREDONIA | H50: 4.25 | I50: 1.41176 | J50: 1.01678
E51: 05284 | F51: 05 | G51: FRONTINO | H51: 4.25 | I51: 1.41176 | J51: 1.01631
E52: 05306 | F52: 05 | G52: GIRALDO | H52: 3.75 | I52: 1.6 | J52: 1.01473
E53: 05308 | F53: 05 | G53: GIRARDOTA | H53: 3.75 | I53: 1.6 | J53: 1.02219
E54: 05310 | F54: 05 | G54: GÓMEZ PLATA | H54: 4.25 | I54: 1.41176 | J54: 1.01987
E55: 05313 | F55: 05 | G55: GRANADA | H55: 4.25 | I55: 1.41176 | J55: 1.01422
E56: 05315 | F56: 05 | G56: GUADALUPE | H56: 4.25 | I56: 1.41176 | J56: 1.01882
E57: 05318 | F57: 05 | G57: GUARNE | H57: 3.75 | I57: 1.6 | J57: 1.01697
E58: 05321 | F58: 05 | G58: GUATAPÉ | H58: 4.25 | I58: 1.41176 | J58: 1.01939
E59: 05347 | F59: 05 | G59: HELICONIA | H59: 3.75 | I59: 1.6 | J59: 1.01801
E60: 05353 | F60: 05 | G60: HISPANIA | H60: 4.25 | I60: 1.41176 | J60: 1.01636
E61: 05360 | F61: 05 | G61: ITAGÜÍ | H61: 4.25 | I61: 1.41176 | J61: 1.01459
E62: 05361 | F62: 05 | G62: ITUANGO | H62: 3.75 | I62: 1.6 | J62: 1.0216
E63: 05364 | F63: 05 | G63: JARDÍN | H63: 4.25 | I63: 1.41176 | J63: 1.01127
E64: 05368 | F64: 05 | G64: JERICÓ | H64: 4.25 | I64: 1.41176 | J64: 1.02189
E65: 05376 | F65: 05 | G65: LA CEJA | H65: 4.25 | I65: 1.41176 | J65: 1.02176
E66: 05380 | F66: 05 | G66: LA ESTRELLA | H66: 3.75 | I66: 1.6 | J66: 1.01493
E67: 05390 | F67: 05 | G67: LA PINTADA | H67: 4.25 | I67: 1.41176 | J67: 1.01748
E68: 05400 | F68: 05 | G68: LA UNIÓN | H68: 4.25 | I68: =ROUND(6/H68,5) -> 1.41176 | J68: 1.01401
E69: 05411 | F69: 05 | G69: LIBORINA | H69: 3.75 | I69: 1.6 | J69: 1.0188
E70: 05425 | F70: 05 | G70: MACEO | H70: 4.25 | I70: 1.41176 | J70: 1.01724
E71: 05440 | F71: 05 | G71: MARINILLA | H71: 4.25 | I71: 1.41176 | J71: 1.01822
E72: 05467 | F72: 05 | G72: MONTEBELLO | H72: 4.25 | I72: 1.41176 | J72: 1.01966
E73: 05475 | F73: 05 | G73: MURINDÓ | H73: 3.75 | I73: 1.6 | J73: 1.03373
E74: 05480 | F74: 05 | G74: MUTATÁ | H74: 3.75 | I74: 1.6 | J74: 1.01831
E75: 05483 | F75: 05 | G75: NARIÑO | H75: 4.25 | I75: 1.41176 | J75: 1.02502
E76: 05490 | F76: 05 | G76: NECOCLÍ | H76: 3.75 | I76: 1.6 | J76: 1.02651
E77: 05495 | F77: 05 | G77: NECHÍ | H77: 4.75 | I77: 1.26316 | J77: 1.02716
E78: 05501 | F78: 05 | G78: OLAYA | H78: 4.25 | I78: 1.41176 | J78: 1.02581
E79: 05541 | F79: 05 | G79: PEÑOL | H79: 4.25 | I79: 1.41176 | J79: 1.02491
E80: 05543 | F80: 05 | G80: PEQUE | H80: 3.75 | I80: 1.6 | J80: 1.02094
E81: 05576 | F81: 05 | G81: PUEBLORRICO | H81: 4.25 | I81: 1.41176 | J81: 1.02056
E82: 05579 | F82: 05 | G82: PUERTO BERRÍO | H82: 4.25 | I82: 1.41176 | J82: 1.02344
E83: 05585 | F83: 05 | G83: PUERTO NARE | H83: 4.25 | I83: 1.41176 | J83: 1.0279
E84: 05591 | F84: 05 | G84: PUERTO TRIUNFO | H84: 4.75 | I84: 1.26316 | J84: 1.02282
E85: 05604 | F85: 05 | G85: REMEDIOS | H85: 4.25 | I85: 1.41176 | J85: 1.03
E86: 05607 | F86: 05 | G86: RETIRO | H86: 3.75 | I86: 1.6 | J86: 1.023
E87: 05615 | F87: 05 | G87: RIONEGRO | H87: 4.25 | I87: 1.41176 | J87: 1.01654
E88: 05628 | F88: 05 | G88: SABANALARGA | H88: 3.25 | I88: 1.84615 | J88: 1.02404
E89: 05631 | F89: 05 | G89: SABANETA | H89: 3.75 | I89: 1.6 | J89: 1.01358
E90: 05642 | F90: 05 | G90: SALGAR | H90: 3.75 | I90: 1.6 | J90: 1.0183
E91: 05647 | F91: 05 | G91: SAN ANDRÉS DE CUERQUÍA | H91: 3.25 | I91: 1.84615 | J91: 1.0204
E92: 05649 | F92: 05 | G92: SAN CARLOS | H92: 4.25 | I92: 1.41176 | J92: 1.02228
E93: 05652 | F93: 05 | G93: SAN FRANCISCO | H93: 3.75 | I93: 1.6 | J93: 1.02554
E94: 05656 | F94: 05 | G94: SAN JERÓNIMO | H94: 4.25 | I94: 1.41176 | J94: 1.01509
E95: 05658 | F95: 05 | G95: SAN JOSÉ DE LA MONTAÑA | H95: 3.75 | I95: 1.6 | J95: 1.01826
E96: 05659 | F96: 05 | G96: SAN JUAN DE URABÁ | H96: 4.25 | I96: 1.41176 | J96: 1.02903
E97: 05660 | F97: 05 | G97: SAN LUIS | H97: 4.25 | I97: 1.41176 | J97: 1.0209
E98: 05664 | F98: 05 | G98: SAN PEDRO DE LOS MILAGROS | H98: 4.25 | I98: 1.41176 | J98: 1.01535
E99: 05665 | F99: 05 | G99: SAN PEDRO DE URABÁ | H99: 4.25 | I99: 1.41176 | J99: 1.03522
E100: 05667 | F100: 05 | G100: SAN RAFAEL | H100: 4.25 | I100: 1.41176 | J100: 1.01994
E101: 05670 | F101: 05 | G101: SAN ROQUE | H101: 4.25 | I101: 1.41176 | J101: 1.02035
E102: 05674 | F102: 05 | G102: SAN VICENTE FERRER | H102: 4.25 | I102: 1.41176 | J102: 1.01603
E103: 05679 | F103: 05 | G103: SANTA BÁRBARA | H103: 3.25 | I103: 1.84615 | J103: 1.01691
E104: 05686 | F104: 05 | G104: SANTA ROSA DE OSOS | H104: 3.75 | I104: 1.6 | J104: 1.02111
E105: 05690 | F105: 05 | G105: SANTO DOMINGO | H105: 4.25 | I105: 1.41176 | J105: 1.01825
E106: 05697 | F106: 05 | G106: EL SANTUARIO | H106: 4.25 | I106: 1.41176 | J106: 1.01642
E107: 05736 | F107: 05 | G107: SEGOVIA | H107: 4.25 | I107: 1.41176 | J107: 1.03156
E108: 05756 | F108: 05 | G108: SONSÓN | H108: 4.25 | I108: 1.41176 | J108: 1.02674
E109: 05761 | F109: 05 | G109: SOPETRÁN | H109: 4.25 | I109: 1.41176 | J109: 1.01653
E110: 05789 | F110: 05 | G110: TÁMESIS | H110: 4.25 | I110: 1.41176 | J110: 1.01906
E111: 05790 | F111: 05 | G111: TARAZÁ | H111: 4.25 | I111: 1.41176 | J111: 1.02579
E112: 05792 | F112: 05 | G112: TARSO | H112: 4.25 | I112: 1.41176 | J112: 1.01814
E113: 05809 | F113: 05 | G113: TITIRIBÍ | H113: 3.75 | I113: 1.6 | J113: 1.01627
E114: 05819 | F114: 05 | G114: TOLEDO | H114: 3.25 | I114: 1.84615 | J114: 1.02391
E115: 05837 | F115: 05 | G115: TURBO | H115: 3.75 | I115: 1.6 | J115: 1.03103
E116: 05842 | F116: 05 | G116: URAMITA | H116: 4.25 | I116: 1.41176 | J116: 1.02027
E117: 05847 | F117: 05 | G117: URRAO | H117: 4.25 | I117: 1.41176 | J117: 1.02795
E118: 05854 | F118: 05 | G118: VALDIVIA | H118: 3.75 | I118: 1.6 | J118: 1.02359
E119: 05856 | F119: 05 | G119: VALPARAÍSO | H119: 4.25 | I119: 1.41176 | J119: 1.01813
E120: 05858 | F120: 05 | G120: VEGACHÍ | H120: 4.25 | I120: 1.41176 | J120: 1.02102
E121: 05861 | F121: 05 | G121: VENECIA | H121: 4.25 | I121: 1.41176 | J121: 1.01476
E122: 05873 | F122: 05 | G122: VIGÍA DEL FUERTE | H122: 3.75 | I122: 1.6 | J122: 1.01852
E123: 05885 | F123: 05 | G123: YALÍ | H123: 4.25 | I123: 1.41176 | J123: 1.02462
E124: 05887 | F124: 05 | G124: YARUMAL | H124: 3.75 | I124: 1.6 | J124: 1.02204
E125: 05890 | F125: 05 | G125: YOLOMBÓ | H125: 4.25 | I125: 1.41176 | J125: 1.0206
E126: 05893 | F126: 05 | G126: YONDÓ | H126: 4.25 | I126: 1.41176 | J126: 1.02933
E127: 05895 | F127: 05 | G127: ZARAGOZA | H127: 4.25 | I127: 1.41176 | J127: 1.03429
E128: 08001 | F128: 08 | G128: BARRANQUILLA | H128: 5.25 | I128: 1.14286 | J128: 1.00712
E129: 08078 | F129: 08 | G129: BARANOA | H129: 5.25 | I129: 1.14286 | J129: 1.01423
E130: 08137 | F130: 08 | G130: CAMPO DE LA CRUZ | H130: 5.25 | I130: 1.14286 | J130: 1.01802
E131: 08141 | F131: 08 | G131: CANDELARIA | H131: 4.75 | I131: 1.26316 | J131: 1.01823
E132: 08296 | F132: 08 | G132: GALAPA | H132: 5.75 | I132: =ROUND(6/H132,5) -> 1.04348 | J132: 1.01337
E133: 08372 | F133: 08 | G133: JUAN DE ACOSTA | H133: 5.25 | I133: 1.14286 | J133: 1.01556
E134: 08421 | F134: 08 | G134: LURUACO | H134: 5.25 | I134: 1.14286 | J134: 1.01787
E135: 08433 | F135: 08 | G135: MALAMBO | H135: 5.75 | I135: 1.04348 | J135: 1.01387
E136: 08436 | F136: 08 | G136: MANATÍ | H136: 5.25 | I136: 1.14286 | J136: 1.01835
E137: 08520 | F137: 08 | G137: PALMAR DE VARELA | H137: 5.25 | I137: 1.14286 | J137: 1.01578
E138: 08549 | F138: 08 | G138: PIOJÓ | H138: 5.25 | I138: 1.14286 | J138: 1.01763
E139: 08558 | F139: 08 | G139: POLONUEVO | H139: 5.25 | I139: 1.14286 | J139: 1.01504
E140: 08560 | F140: 08 | G140: PONEDERA | H140: 4.75 | I140: 1.26316 | J140: 1.01738
E141: 08573 | F141: 08 | G141: PUERTO COLOMBIA | H141: 4.25 | I141: 1.41176 | J141: 1.01434
E142: 08606 | F142: 08 | G142: REPELÓN | H142: 5.25 | I142: 1.14286 | J142: 1.0196
E143: 08634 | F143: 08 | G143: SABANAGRANDE | H143: 5.75 | I143: 1.04348 | J143: 1.01414
E144: 08638 | F144: 08 | G144: SABANALARGA | H144: 4.75 | I144: 1.26316 | J144: 1.01698
E145: 08675 | F145: 08 | G145: SANTA LUCÍA | H145: 5.25 | I145: 1.14286 | J145: 1.01893
E146: 08685 | F146: 08 | G146: SANTO TOMÁS | H146: 5.25 | I146: 1.14286 | J146: 1.01586
E147: 08758 | F147: 08 | G147: SOLEDAD | H147: 5.75 | I147: 1.04348 | J147: 1.01166
E148: 08770 | F148: 08 | G148: SUAN | H148: 4.75 | I148: 1.26316 | J148: 1.0179
E149: 08832 | F149: 08 | G149: TUBARÁ | H149: 5.25 | I149: 1.14286 | J149: 1.01474
E150: 08849 | F150: 08 | G150: USIACURÍ | H150: 5.25 | I150: 1.14286 | J150: 1.01513
E151: 11001 | F151: 11 | G151: BOGOTÁ D.C. | H151: 3.75 | I151: 1.6 | J151: 1.02407
E152: 13001 | F152: 13 | G152: CARTAGENA DE INDIAS | H152: 4.75 | I152: 1.26316 | J152: 1.02225
E153: 13006 | F153: 13 | G153: ACHÍ | H153: 4.75 | I153: 1.26316 | J153: 1.0468
E154: 13030 | F154: 13 | G154: ALTOS DEL ROSARIO | H154: 4.75 | I154: 1.26316 | J154: 1.04911
E155: 13042 | F155: 13 | G155: ARENAL | H155: 4.25 | I155: 1.41176 | J155: 1.05024
E156: 13052 | F156: 13 | G156: ARJONA | H156: 5.25 | I156: 1.14286 | J156: 1.02945
E157: 13062 | F157: 13 | G157: ARROYOHONDO | H157: 5.25 | I157: 1.14286 | J157: 1.0369
E158: 13074 | F158: 13 | G158: BARRANCO DE LOBA | H158: 4.75 | I158: 1.26316 | J158: 1.04896
E159: 13140 | F159: 13 | G159: CALAMAR | H159: 4.25 | I159: 1.41176 | J159: 1.03149
E160: 13160 | F160: 13 | G160: CANTAGALLO | H160: 4.75 | I160: 1.26316 | J160: 1.04811
E161: 13188 | F161: 13 | G161: CICUCO | H161: 5.75 | I161: 1.04348 | J161: 1.04309
E162: 13212 | F162: 13 | G162: CÓRDOBA | H162: 4.75 | I162: 1.26316 | J162: 1.04108
E163: 13222 | F163: 13 | G163: CLEMENCIA | H163: 5.25 | I163: 1.14286 | J163: 1.02514
E164: 13244 | F164: 13 | G164: EL CARMEN DE BOLÍVAR | H164: 5.25 | I164: 1.14286 | J164: 1.03456
E165: 13248 | F165: 13 | G165: EL GUAMO | H165: 5.25 | I165: 1.14286 | J165: 1.03762
E166: 13268 | F166: 13 | G166: EL PEÑÓN | H166: 4.25 | I166: 1.41176 | J166: 1.0501
E167: 13300 | F167: 13 | G167: HATILLO DE LOBA | H167: 5.25 | I167: 1.14286 | J167: 1.04576
E168: 13430 | F168: 13 | G168: MAGANGUÉ | H168: 5.25 | I168: 1.14286 | J168: 1.03822
E169: 13433 | F169: 13 | G169: MAHATES | H169: 4.75 | I169: 1.26316 | J169: 1.03136
E170: 13440 | F170: 13 | G170: MARGARITA | H170: 5.25 | I170: 1.14286 | J170: 1.04459
E171: 13442 | F171: 13 | G171: MARÍA LA BAJA | H171: 5.25 | I171: 1.14286 | J171: 1.03056
E172: 13458 | F172: 13 | G172: MONTECRISTO | H172: 4.25 | I172: 1.41176 | J172: 1.04701
E173: 13468 | F173: 13 | G173: SANTA CRUZ DE MOMPOX | H173: 5.25 | I173: 1.14286 | J173: 1.04591
E174: 13473 | F174: 13 | G174: MORALES | H174: 4.25 | I174: 1.41176 | J174: 1.05029
E175: 13490 | F175: 13 | G175: NOROSÍ | H175: 4.75 | I175: 1.26316 | J175: 1.04696
E176: 13549 | F176: 13 | G176: PINILLOS | H176: 4.75 | I176: 1.26316 | J176: 1.02921
E177: 13580 | F177: 13 | G177: REGIDOR | H177: 4.75 | I177: 1.26316 | J177: 1.05062
E178: 13600 | F178: 13 | G178: RÍO VIEJO | H178: 4.25 | I178: 1.41176 | J178: 1.04927
E179: 13620 | F179: 13 | G179: SAN CRISTÓBAL | H179: 5.75 | I179: 1.04348 | J179: 1.03054
E180: 13647 | F180: 13 | G180: SAN ESTANISLAO | H180: 5.25 | I180: 1.14286 | J180: 1.02922
E181: 13650 | F181: 13 | G181: SAN FERNANDO | H181: 5.25 | I181: 1.14286 | J181: 1.0383
E182: 13654 | F182: 13 | G182: SAN JACINTO | H182: 5.25 | I182: 1.14286 | J182: 1.03244
E183: 13655 | F183: 13 | G183: SAN JACINTO DEL CAUCA | H183: 4.75 | I183: 1.26316 | J183: 1.04761
E184: 13657 | F184: 13 | G184: SAN JUAN NEPOMUCENO | H184: 5.25 | I184: 1.14286 | J184: 1.03262
E185: 13667 | F185: 13 | G185: SAN MARTÍN DE LOBA | H185: 4.75 | I185: 1.26316 | J185: 1.04999
E186: 13670 | F186: 13 | G186: SAN PABLO | H186: 4.75 | I186: 1.26316 | J186: 1.04642
E187: 13673 | F187: 13 | G187: SANTA CATALINA | H187: 5.25 | I187: 1.14286 | J187: 1.0262
E188: 13683 | F188: 13 | G188: SANTA ROSA | H188: 3.75 | I188: 1.6 | J188: 1.02521
E189: 13688 | F189: 13 | G189: SANTA ROSA DEL SUR | H189: 4.25 | I189: 1.41176 | J189: 1.03234
E190: 13744 | F190: 13 | G190: SIMITÍ | H190: 4.25 | I190: 1.41176 | J190: 1.04776
E191: 13760 | F191: 13 | G191: SOPLAVIENTO | H191: 5.25 | I191: 1.14286 | J191: 1.03253
E192: 13780 | F192: 13 | G192: TALAIGUA NUEVO | H192: 5.75 | I192: 1.04348 | J192: 1.04368
E193: 13810 | F193: 13 | G193: TIQUISIO | H193: 4.75 | I193: 1.26316 | J193: 1.04787
E194: 13836 | F194: 13 | G194: TURBACO | H194: 5.25 | I194: 1.14286 | J194: 1.02807
E195: 13838 | F195: 13 | G195: TURBANÁ | H195: 4.75 | I195: 1.26316 | J195: 1.02811
E196: 13873 | F196: 13 | G196: VILLANUEVA | H196: 5.25 | I196: =ROUND(6/H196,5) -> 1.14286 | J196: 1.02638
E197: 13894 | F197: 13 | G197: ZAMBRANO | H197: 5.75 | I197: 1.04348 | J197: 1.03395
E198: 15001 | F198: 15 | G198: TUNJA | H198: 4.75 | I198: 1.26316 | J198: 1.0363
E199: 15022 | F199: 15 | G199: ALMEIDA | H199: 4.25 | I199: 1.41176 | J199: 1.05027
E200: 15047 | F200: 15 | G200: AQUITANIA | H200: 4.75 | I200: 1.26316 | J200: 1.04997
E201: 15051 | F201: 15 | G201: ARCABUCO | H201: 4.75 | I201: 1.26316 | J201: 1.04396
... 922 more rows
